[Event "Lueneburg Open-A 2019"]
[Site "Lueneburg"]
[Date "2019.08.09"]
[Round "7.14"]
[White "Ploder, Udo"]
[Black "Chennaoui, Yasin"]
[Result "0-1"]
[ECO "B60"]
[WhiteElo "1942"]
[BlackElo "2092"]
[Annotator "NA"]
[PlyCount "66"]
[EventDate "2019.08.03"]
[EventType "swiss"]
[EventCountry "GER"]
[SourceTitle "playchess.com"]
[Source "ChessBase"]
[SourceQuality "1"]
[TimeControl "40/5400+30:1800+30"]

1. e4 {[%emt 0:00:00]} c5 {[%emt 0:02:34]} 2. Nf3 {[%emt 0:00:00]} Nc6 {[%emt 0:00:28]} 3. d4 {[%emt 0:00:15]} cxd4 {[%emt 0:00:02]} 4. Nxd4 {[%emt 0:00:08]} Nf6 {[%emt 0:00:05]} 5. Nc3 {[%emt 0:00:15]} d6 {[%emt 0:00:06]} 6. Bg5 {[%emt 0:00:29]} Qb6 {[%emt 0:01:29]} 7. Bxf6 {[%emt 0:10:19]} gxf6 {[%emt 0:00:27]} 8. Ndb5 {[%emt 0:03:42]} e6 {[%emt 0:03:23]} 9. Qd2 {[%emt 0:05:24]} a6 {[%emt 0:01:12]} 10. Na4 {[%emt 0:01:02]} Qd8 {[%emt 0:00:49]} 11. Nd4 {[%emt 0:01:07]} Bd7 {[%emt 0:01:02]} 12. Nc3 {[%emt 0:03:08]} h5 {[%emt 0:05:46]} 13. Nxc6 {[%emt 0:04:09]} bxc6 {[%emt 0:01:44]} 14. Be2 {[%emt 0:03:03]} h4 {[%emt 0:02:59]} 15. O-O {[%emt 0:13:33]} Qa5 {[%emt 0:17:55]} 16. a3 {[%emt 0:05:03]} Rg8 {[%emt 0:02:14]} 17. f4 {[%emt 0:04:04]} f5 {[%emt 0:06:54]} 18. b4 {[%emt 0:01:26]} Qb6+ {[%emt 0:00:07]} 19. Kh1 {[%emt 0:00:43]} Bg7 {[%emt 0:01:18]} 20. exf5 {[%emt 0:02:33]} Qd4 {[%emt 0:01:28]} 21. Rad1 {[%emt 0:03:00]} Qxd2 {[%emt 0:00:23]} 22. Rxd2 {[%emt 0:00:51]} Bxc3 {[%emt 0:00:11]} 23. Rxd6 {[%emt 0:00:56]} Ke7 {[%emt 0:06:14]} 24. Rfd1 {[%emt 0:00:58]} Rad8 {[%emt 0:06:06]} 25. R6d3 {[%emt 0:05:29]} Bf6 {[%emt 0:01:58]} 26. Re3 {[%emt 0:02:10]} Bc8 {[%emt 0:01:13]} 27. fxe6 {[%emt 0:02:09]} Rxd1+ {[%emt 0:00:38]} 28. Bxd1 {[%emt 0:00:08]} fxe6 {[%emt 0:00:23]} 29. Bf3 {[%emt 0:02:37]} Rd8 {[%emt 0:03:43]} 30. g4 {[%emt 0:01:10]} h3 {[%emt 0:01:41]} 31. g5 {[%emt 0:01:36]} Bd4 {[%emt 0:00:12]} 32. Rb3 {[%emt 0:02:16]} c5 {[%emt 0:03:05]} 33. Be4 {[%emt 0:01:17]} Be3 {[%emt 0:01:07]} 0-1

[Event "Lueneburg Open-A 2019"]
[Site "Lueneburg"]
[Date "2019.08.09"]
[Round "7.15"]
[White "Stork, Oliver"]
[Black "Kiesel, Harald"]
[Result "1/2-1/2"]
[ECO "D02"]
[WhiteElo "2322"]
[BlackElo "2023"]
[Annotator "NA"]
[PlyCount "66"]
[EventDate "2019.08.03"]
[EventType "swiss"]
[EventCountry "GER"]
[SourceTitle "playchess.com"]
[Source "ChessBase"]
[SourceQuality "1"]
[TimeControl "40/5400+30:1800+30"]

1. d4 {[%emt 0:05:31]} d5 {[%emt 0:00:00]} 2. Bf4 {[%emt 0:00:13]} Nf6 {[%emt 0:00:00]} 3. e3 {[%emt 0:00:08]} c5 {[%emt 0:00:30]} 4. c3 {[%emt 0:00:06]} Nc6 {[%emt 0:02:07]} 5. Nd2 {[%emt 0:00:08]} e6 {[%emt 0:01:58]} 6. Ngf3 {[%emt 0:00:07]} Bd6 {[%emt 0:00:07]} 7. Bg3 {[%emt 0:00:05]} O-O {[%emt 0:00:40]} 8. Bd3 {[%emt 0:00:10]} b6 {[%emt 0:00:27]} 9. Qe2 {[%emt 0:00:19]} Bb7 {[%emt 0:00:53]} 10. Rd1 {[%emt 0:00:09]} Rc8 {[%emt 0:01:58]} 11. e4 {[%emt 0:05:31]} Be7 {[%emt 0:01:26]} 12. dxc5 {[%emt 0:08:33]} bxc5 {[%emt 0:01:05]} 13. O-O {[%emt 0:00:33]} Re8 {[%emt 0:04:17]} 14. h3 {[%emt 0:05:56]} Bf8 {[%emt 0:10:10]} 15. Bh4 {[%emt 0:09:00]} Be7 {[%emt 0:02:04]} 16. c4 {[%emt 0:04:35]} Nh5 {[%emt 0:15:25]} 17. Bxe7 {[%emt 0:19:03]} Qxe7 {[%emt 0:00:32]} 18. g3 {[%emt 0:05:19]} Nf6 {[%emt 0:01:11]} 19. Rfe1 {[%emt 0:01:19]} dxe4 {[%emt 0:11:03]} 20. Nxe4 {[%emt 0:03:07]} Red8 {[%emt 0:01:41]} 21. Nxf6+ {[%emt 0:02:25]} Qxf6 {[%emt 0:00:35]} 22. Be4 {[%emt 0:00:29]} g6 {[%emt 0:06:01]} 23. Qe3 {[%emt 0:05:13]} Na5 {[%emt 0:04:25]} 24. Bxb7 {[%emt 0:05:45]} Nxb7 {[%emt 0:00:02]} 25. Ne5 {[%emt 0:00:20]} Nd6 {[%emt 0:08:09]} 26. Ng4 {[%emt 0:06:34]} Qg7 {[%emt 0:11:07]} 27. Qg5 {[%emt 0:04:14]} h5 {[%emt 0:00:50]} 28. Nf6+ {[%emt 0:00:14]} Kf8 {[%emt 0:03:44]} 29. Rd3 {[%emt 0:01:43]} Nf5 {[%emt 0:01:27]} 30. Rxd8+ {[%emt 0:00:55]} Rxd8 {[%emt 0:00:01]} 31. Nxh5 {[%emt 0:00:12]} Qd4 {[%emt 0:01:21]} 32. Nf4 {[%emt 0:02:29]} Rd6 {[%emt 0:02:00]} 33. Qg4 {[%emt 0:03:10]} Qxb2 {[%emt 0:09:14]} 1/2-1/2

[Event "Lueneburg Open-A 2019"]
[Site "Lueneburg"]
[Date "2019.08.09"]
[Round "7.16"]
[White "Colbow, Collin"]
[Black "Deutschbein, Christopher"]
[Result "0-1"]
[ECO "C80"]
[WhiteElo "2167"]
[BlackElo "2015"]
[Annotator "NA"]
[PlyCount "42"]
[EventDate "2019.08.03"]
[EventType "swiss"]
[EventCountry "GER"]
[SourceTitle "playchess.com"]
[Source "ChessBase"]
[SourceQuality "1"]
[TimeControl "40/5400+30:1800+30"]

1. e4 {[%emt 0:04:22]} e5 {[%emt 0:00:34]} 2. Nf3 {[%emt 0:00:05]} Nc6 {[%emt 0:00:04]} 3. Bb5 {[%emt 0:00:03]} a6 {[%emt 0:00:09]} 4. Ba4 {[%emt 0:00:02]} Nf6 {[%emt 0:00:14]} 5. O-O {[%emt 0:00:06]} Nxe4 {[%emt 0:00:39]} 6. d4 {[%emt 0:06:55]} exd4 {[%emt 0:00:50]} 7. Re1 {[%emt 0:05:47]} d5 {[%emt 0:00:11]} 8. Nxd4 {[%emt 0:04:56]} Bd6 {[%emt 0:00:37]} 9. Nxc6 {[%emt 0:12:57]} Bxh2+ {[%emt 0:00:11]} 10. Kf1 {[%emt 0:04:29]} Qh4 {[%emt 0:01:16]} 11. Qf3 {[%emt 0:05:27]} O-O {[%emt 0:08:50]} 12. Nd4 {[%emt 0:18:41]} Bg4 {[%emt 0:08:52]} 13. Qe3 {[%emt 0:04:58]} Bf4 {[%emt 0:02:44]} 14. Nf3 {[%emt 0:00:10]} Qh1+ {[%emt 0:01:10]} 15. Ke2 {[%emt 0:00:05]} Qxg2 {[%emt 0:00:19]} 16. Qxf4 {[%emt 0:02:24]} Qxf2+ {[%emt 0:00:55]} 17. Kd3 {[%emt 0:00:18]} Bxf3 {[%emt 0:05:38]} 18. Qe3 {[%emt 0:04:10]} Nc5+ {[%emt 0:04:55]} 19. Kc3 {[%emt 0:00:20]} d4+ {[%emt 0:00:23]} 20. Kxd4 {[%emt 0:00:51]} Qh4+ {[%emt 0:00:23]} 21. Qf4 {[%emt 0:01:34]} Qxe1 {[%emt 0:02:18]} 0-1

[Event "Lueneburg Open-A 2019"]
[Site "Lueneburg"]
[Date "2019.08.09"]
[Round "7.17"]
[White "Haas, Frank-Martin"]
[Black "Reuker, Matthias"]
[Result "1/2-1/2"]
[ECO "B22"]
[WhiteElo "2152"]
[BlackElo "2012"]
[Annotator "NA"]
[PlyCount "154"]
[EventDate "2019.08.03"]
[EventType "swiss"]
[EventCountry "GER"]
[SourceTitle "playchess.com"]
[Source "ChessBase"]
[SourceQuality "1"]
[TimeControl "40/5400+30:1800+30"]

1. e4 {[%emt 0:00:00]} c5 {[%emt 0:00:18]} 2. c3 {[%emt 0:00:00]} Nf6 {[%emt 0:00:08]} 3. e5 {[%emt 0:00:00]} Nd5 {[%emt 0:00:09]} 4. d4 {[%emt 0:00:00]} cxd4 {[%emt 0:00:04]} 5. Nf3 {[%emt 0:00:02]} e6 {[%emt 0:00:15]} 6. cxd4 {[%emt 0:00:10]} d6 {[%emt 0:00:05]} 7. a3 {[%emt 0:00:14]} Bd7 {[%emt 0:00:23]} 8. Bd3 {[%emt 0:00:16]} Bc6 {[%emt 0:00:08]} 9. O-O {[%emt 0:00:16]} Nd7 {[%emt 0:00:17]} 10. Re1 {[%emt 0:00:17]} Rc8 {[%emt 0:00:39]} 11. b4 {[%emt 0:20:39]} a6 {[%emt 0:00:07]} 12. Ng5 {[%emt 0:00:14]} Be7 {[%emt 0:09:25]} 13. Qh5 {[%emt 0:13:40]} g6 {[%emt 0:00:27]} 14. Qh6 {[%emt 0:02:57]} Bf8 {[%emt 0:03:04]} 15. Qh3 {[%emt 0:01:21]} dxe5 {[%emt 0:18:06]} 16. Bxg6 {[%emt 0:12:30]} fxg6 {[%emt 0:02:51]} 17. Nxe6 {[%emt 0:01:24]} Qf6 {[%emt 0:04:41]} 18. dxe5 {[%emt 0:22:07]} Qf5 {[%emt 0:01:00]} 19. Qxf5 {[%emt 0:00:16]} gxf5 {[%emt 0:00:04]} 20. Nd4 {[%emt 0:00:07]} f4 {[%emt 0:15:06]} 21. Nf5 {[%emt 0:04:20]} Rg8 {[%emt 0:01:06]} 22. e6 {[%emt 0:05:35]} N7b6 {[%emt 0:05:06]} 23. e7 {[%emt 0:01:30]} Nxe7 {[%emt 0:00:23]} 24. Nd6+ {[%emt 0:00:51]} Kd7 {[%emt 0:00:43]} 25. Nxc8 {[%emt 0:00:16]} Rxg2+ {[%emt 0:00:13]} 26. Kf1 {[%emt 0:00:05]} Kxc8 {[%emt 0:00:27]} 27. Bxf4 {[%emt 0:00:27]} Rg4 {[%emt 0:01:26]} 28. Bg3 {[%emt 0:00:48]} Bb5+ {[%emt 0:01:11]} 29. Kg2 {[%emt 0:00:12]} Ned5 {[%emt 0:06:22]} 30. Nd2 {[%emt 0:01:20]} Bc6 {[%emt 0:03:41]} 31. f3 {[%emt 0:02:00]} Rg6 {[%emt 0:04:24]} 32. Ne4 {[%emt 0:04:47]} Nf4+ {[%emt 0:03:57]} 33. Kh1 {[%emt 0:01:19]} Nbd5 {[%emt 0:00:46]} 34. Rad1 {[%emt 0:01:19]} h5 {[%emt 0:01:00]} 35. Rd2 {[%emt 0:01:22]} Be7 {[%emt 0:05:40]} 36. Rg1 {[%emt 0:00:56]} Nh3 {[%emt 0:03:37]} 37. Rc1 {[%emt 0:00:01]} Ndf4 {[%emt 0:05:41]} 38. Re1 {[%emt 0:02:13]} h4 {[%emt 0:00:29]} 39. Bxf4 {[%emt 0:00:08]} Nxf4 {[%emt 0:00:07]} 40. Rg1 {[%emt 0:00:15]} Rxg1+ {[%emt 0:03:55]} 41. Kxg1 {[%emt 0:30:06]} Bd8 {[%emt 0:31:26]} 42. Nd6+ {[%emt 0:00:00]} Kc7 {[%emt 0:00:00]} 43. Ne4 {[%emt 0:00:00]} Be7 {[%emt 0:00:00]} 44. Kf2 {[%emt 0:00:00]} Bf8 {[%emt 0:00:00]} 45. Rc2 {[%emt 0:00:00]} Kb6 {[%emt 0:00:00]} 46. Rc4 {[%emt 0:00:00]} Kb5 {[%emt 0:00:00]} 47. Rd4 {[%emt 0:00:00]} Nd5 {[%emt 0:00:00]} 48. Nc5 {[%emt 0:00:00]} Be7 {[%emt 0:00:00]} 49. f4 {[%emt 0:00:47]} Bf6 {[%emt 0:00:00]} 50. a4+ {[%emt 0:00:11]} Kb6 {[%emt 0:00:00]} 51. Rxd5 {[%emt 0:00:03]} Bxd5 {[%emt 0:00:00]} 52. Nd7+ {[%emt 0:00:04]} Kc7 {[%emt 0:00:00]} 53. Nxf6 {[%emt 0:00:08]} Bb3 {[%emt 0:00:00]} 54. Ke3 {[%emt 0:04:23]} Bxa4 {[%emt 0:00:00]} 55. Kd4 {[%emt 0:00:21]} Bc6 {[%emt 0:00:00]} 56. Ng4 {[%emt 0:03:19]} b6 {[%emt 0:00:00]} 57. Ne3 {[%emt 0:00:24]} a5 {[%emt 0:00:00]} 58. bxa5 {[%emt 0:00:04]} bxa5 {[%emt 0:00:00]} 59. Nc4 {[%emt 0:00:27]} a4 {[%emt 0:00:00]} 60. Ke5 {[%emt 0:00:17]} Kd7 {[%emt 0:00:00]} 61. f5 {[%emt 0:00:23]} h3 {[%emt 0:04:53]} 62. f6 {[%emt 0:01:19]} Ke8 {[%emt 0:02:35]} 63. Kf5 {[%emt 0:00:27]} Bd5 {[%emt 0:01:21]} 64. Na3 {[%emt 0:01:04]} Kf7 {[%emt 0:00:33]} 65. Nb5 {[%emt 0:00:16]} Be6+ {[%emt 0:00:27]} 66. Kg5 {[%emt 0:00:07]} Bd7 {[%emt 0:00:16]} 67. Nd6+ {[%emt 0:01:17]} Kf8 {[%emt 0:00:07]} 68. Nc4 {[%emt 0:00:05]} Bb5 {[%emt 0:00:11]} 69. Na3 {[%emt 0:00:28]} Bd3 {[%emt 0:00:54]} 70. Kg4 {[%emt 0:00:32]} Bf1 {[%emt 0:00:41]} 71. Kg5 {[%emt 0:00:26]} Kf7 {[%emt 0:00:08]} 72. Kf5 {[%emt 0:00:17]} Bd3+ {[%emt 0:00:29]} 73. Ke5 {[%emt 0:00:49]} Be2 {[%emt 0:01:24]} 74. Kf5 {[%emt 0:00:08]} Bf1 {[%emt 0:00:10]} 75. Ke5 {[%emt 0:00:33]} Bd3 {[%emt 0:00:06]} 76. Kd4 {[%emt 0:00:05]} Ba6 {[%emt 0:01:22]} 77. Ke5 {[%emt 0:03:26]} Bd3 {[%emt 0:03:56]} 1/2-1/2

[Event "Lueneburg Open-A 2019"]
[Site "Lueneburg"]
[Date "2019.08.09"]
[Round "7.18"]
[White "Ishak, Rashid"]
[Black "Prasse, Philipp"]
[Result "1-0"]
[ECO "B12"]
[WhiteElo "2141"]
[BlackElo "2003"]
[Annotator "NA"]
[PlyCount "41"]
[EventDate "2019.08.03"]
[EventType "swiss"]
[EventCountry "GER"]
[SourceTitle "playchess.com"]
[Source "ChessBase"]
[SourceQuality "1"]
[TimeControl "40/5400+30:1800+30"]

1. e4 {[%emt 0:00:00]} c6 {[%emt 0:00:00]} 2. d4 {[%emt 0:00:00]} d5 {[%emt 0:00:00]} 3. e5 {[%emt 0:00:00]} Bf5 {[%emt 0:00:00]} 4. Nc3 {[%emt 0:00:29]} e6 {[%emt 0:00:16]} 5. g4 {[%emt 0:00:16]} Bg6 {[%emt 0:00:11]} 6. Nge2 {[%emt 0:00:10]} c5 {[%emt 0:01:05]} 7. h4 {[%emt 0:00:35]} h5 {[%emt 0:00:12]} 8. Nf4 {[%emt 0:00:32]} Bh7 {[%emt 0:00:13]} 9. Nxh5 {[%emt 0:00:40]} Nc6 {[%emt 0:00:37]} 10. dxc5 {[%emt 0:00:46]} Bxc5 {[%emt 0:00:44]} 11. Bb5 {[%emt 0:00:18]} Qc7 {[%emt 0:02:20]} 12. Nxg7+ {[%emt 0:12:50]} Kf8 {[%emt 0:02:54]} 13. Bxc6 {[%emt 0:01:55]} Qxc6 {[%emt 0:06:18]} 14. Nh5 {[%emt 0:05:24]} d4 {[%emt 0:01:03]} 15. Rh3 {[%emt 0:01:26]} dxc3 {[%emt 0:04:38]} 16. b4 {[%emt 0:03:19]} Qg2 {[%emt 0:13:17]} 17. bxc5 {[%emt 0:00:39]} Qg1+ {[%emt 0:11:21]} 18. Ke2 {[%emt 0:00:29]} Qxg4+ {[%emt 0:00:20]} 19. f3 {[%emt 0:11:05]} Qxh3 {[%emt 0:19:32]} 20. Qd6+ {[%emt 0:00:15]} Ke8 {[%emt 0:00:45]} 21. Ng7# {[%emt 0:00:09]} 1-0

[Event "Lueneburg Open-A 2019"]
[Site "Lueneburg"]
[Date "2019.08.09"]
[Round "7.20"]
[White "Rick, Uwe"]
[Black "Bosselmann, Tom Linus"]
[Result "1/2-1/2"]
[ECO "A26"]
[WhiteElo "2113"]
[BlackElo "2000"]
[Annotator "NA"]
[PlyCount "81"]
[EventDate "2019.08.03"]
[EventType "swiss"]
[EventCountry "GER"]
[SourceTitle "playchess.com"]
[Source "ChessBase"]
[SourceQuality "1"]
[TimeControl "40/5400+30:1800+30"]

1. c4 {[%emt 0:00:00]} Nf6 {[%emt 0:00:00]} 2. g3 {[%emt 0:00:01]} g6 {[%emt 0:00:00]} 3. Bg2 {[%emt 0:00:07]} Bg7 {[%emt 0:00:00]} 4. Nc3 {[%emt 0:00:08]} O-O {[%emt 0:00:03]} 5. e4 {[%emt 0:00:02]} d6 {[%emt 0:00:09]} 6. Nge2 {[%emt 0:00:06]} e5 {[%emt 0:00:10]} 7. O-O {[%emt 0:00:07]} Nc6 {[%emt 0:00:51]} 8. d3 {[%emt 0:00:14]} Ne7 {[%emt 0:06:13]} 9. h3 {[%emt 0:07:05]} c6 {[%emt 0:02:21]} 10. d4 {[%emt 0:12:38]} Nd7 {[%emt 0:12:37]} 11. Be3 {[%emt 0:13:51]} f5 {[%emt 0:03:38]} 12. f4 {[%emt 0:14:29]} fxe4 {[%emt 0:11:17]} 13. Nxe4 {[%emt 0:04:28]} Nf5 {[%emt 0:00:42]} 14. Bf2 {[%emt 0:00:25]} exf4 {[%emt 0:05:07]} 15. Nxf4 {[%emt 0:01:53]} Nf6 {[%emt 0:00:37]} 16. Ng5 {[%emt 0:02:28]} Re8 {[%emt 0:01:52]} 17. Re1 {[%emt 0:00:47]} Bh6 {[%emt 0:05:44]} 18. Nge6 {[%emt 0:02:55]} Bxe6 {[%emt 0:00:22]} 19. Nxe6 {[%emt 0:00:23]} Qd7 {[%emt 0:00:48]} 20. d5 {[%emt 0:01:55]} cxd5 {[%emt 0:02:02]} 21. cxd5 {[%emt 0:00:13]} Ng7 {[%emt 0:03:29]} 22. Qb3 {[%emt 0:04:33]} Re7 {[%emt 0:03:28]} 23. Rad1 {[%emt 0:09:42]} a5 {[%emt 0:06:11]} 24. a4 {[%emt 0:06:38]} Rae8 {[%emt 0:01:38]} 25. Bd4 {[%emt 0:06:19]} Nfh5 {[%emt 0:07:10]} 26. Re4 {[%emt 0:02:58]} Nf5 {[%emt 0:01:51]} 27. Bf2 {[%emt 0:00:55]} Nf6 {[%emt 0:00:31]} 28. Ree1 {[%emt 0:01:24]} Ng7 {[%emt 0:00:37]} 29. g4 {[%emt 0:01:16]} Nxe6 {[%emt 0:00:56]} 30. dxe6 {[%emt 0:00:17]} Qc7 {[%emt 0:07:47]} 31. Bd4 {[%emt 0:01:32]} Rf8 {[%emt 0:02:19]} 32. Rf1 {[%emt 0:00:26]} Ne8 {[%emt 0:02:41]} 33. Rf7 {[%emt 0:01:28]} Bg7 {[%emt 0:03:59]} 34. Bxg7 {[%emt 0:01:27]} Nxg7 {[%emt 0:00:05]} 35. Rdf1 {[%emt 0:00:24]} Rfxf7 {[%emt 0:01:01]} 36. Rxf7 {[%emt 0:01:07]} Rxf7 {[%emt 0:00:27]} 37. exf7+ {[%emt 0:00:06]} Kf8 {[%emt 0:00:03]} 38. Bxb7 {[%emt 0:01:48]} Qc1+ {[%emt 0:00:34]} 39. Kh2 {[%emt 0:01:33]} Qf4+ {[%emt 0:00:52]} 40. Qg3 {[%emt 0:01:01]} Qd2+ {[%emt 0:03:59]} 41. Bg2 {[%emt 0:03:42]} 1/2-1/2

[Event "Lueneburg Open-A 2019"]
[Site "Lueneburg"]
[Date "2019.08.09"]
[Round "7.21"]
[White "Klages, Hans Juergen"]
[Black "Thanisch, Matthias"]
[Result "1/2-1/2"]
[ECO "E05"]
[WhiteElo "2095"]
[BlackElo "1991"]
[Annotator "NA"]
[PlyCount "36"]
[EventDate "2019.08.03"]
[EventType "swiss"]
[EventCountry "GER"]
[SourceTitle "playchess.com"]
[Source "ChessBase"]
[SourceQuality "1"]
[TimeControl "40/5400+30:1800+30"]

1. d4 {[%emt 0:00:00]} Nf6 {[%emt 0:00:06]} 2. g3 {[%emt 0:00:00]} d5 {[%emt 0:00:37]} 3. Bg2 {[%emt 0:00:00]} e6 {[%emt 0:00:06]} 4. Nf3 {[%emt 0:00:13]} Be7 {[%emt 0:00:06]} 5. O-O {[%emt 0:00:07]} O-O {[%emt 0:00:11]} 6. c4 {[%emt 0:00:17]} dxc4 {[%emt 0:00:32]} 7. Ne5 {[%emt 0:02:06]} Nc6 {[%emt 0:10:49]} 8. Bxc6 {[%emt 0:10:32]} bxc6 {[%emt 0:00:27]} 9. Nxc6 {[%emt 0:00:02]} Qd6 {[%emt 0:16:14]} 10. Nxe7+ {[%emt 0:00:08]} Qxe7 {[%emt 0:00:02]} 11. Na3 {[%emt 0:09:43]} c5 {[%emt 0:08:13]} 12. Nxc4 {[%emt 0:01:52]} cxd4 {[%emt 0:00:20]} 13. Qxd4 {[%emt 0:00:15]} Rd8 {[%emt 0:02:26]} 14. Qh4 {[%emt 0:27:40]} Ba6 {[%emt 0:10:55]} 15. Bg5 {[%emt 0:01:03]} Rac8 {[%emt 0:12:14]} 16. b3 {[%emt 0:04:28]} h6 {[%emt 0:01:20]} 17. Bxf6 {[%emt 0:01:14]} Qxf6 {[%emt 0:00:05]} 18. Qxf6 {[%emt 0:00:04]} gxf6 {[%emt 0:00:08]} 1/2-1/2

[Event "Lueneburg Open-A 2019"]
[Site "Lueneburg"]
[Date "2019.08.09"]
[Round "7.22"]
[White "Schulz, Daniel"]
[Black "Nyenhuis, Yannek"]
[Result "1/2-1/2"]
[ECO "E05"]
[WhiteElo "2071"]
[BlackElo "1927"]
[Annotator "NA"]
[PlyCount "125"]
[EventDate "2019.08.03"]
[EventType "swiss"]
[EventCountry "GER"]
[SourceTitle "playchess.com"]
[Source "ChessBase"]
[SourceQuality "1"]
[TimeControl "40/5400+30:1800+30"]

1. d4 {[%emt 0:03:04]} Nf6 {[%emt 0:00:00]} 2. c4 {[%emt 0:00:05]} e6 {[%emt 0:00:00]} 3. g3 {[%emt 0:00:06]} d5 {[%emt 0:00:00]} 4. Nf3 {[%emt 0:00:06]} Be7 {[%emt 0:00:04]} 5. Bg2 {[%emt 0:00:04]} O-O {[%emt 0:00:06]} 6. O-O {[%emt 0:00:05]} dxc4 {[%emt 0:00:18]} 7. Qc2 {[%emt 0:00:29]} a6 {[%emt 0:00:26]} 8. Qxc4 {[%emt 0:00:42]} b5 {[%emt 0:01:04]} 9. Qc2 {[%emt 0:00:10]} Bb7 {[%emt 0:00:05]} 10. Bd2 {[%emt 0:00:15]} Be4 {[%emt 0:01:21]} 11. Qc1 {[%emt 0:00:28]} c6 {[%emt 0:05:30]} 12. Rd1 {[%emt 0:01:37]} Nbd7 {[%emt 0:02:48]} 13. Nc3 {[%emt 0:14:49]} Bg6 {[%emt 0:00:07]} 14. Bg5 {[%emt 0:01:12]} Rc8 {[%emt 0:03:23]} 15. a3 {[%emt 0:07:10]} Nd5 {[%emt 0:05:54]} 16. Bxe7 {[%emt 0:03:50]} Qxe7 {[%emt 0:00:11]} 17. Ne5 {[%emt 0:04:37]} Nxe5 {[%emt 0:03:52]} 18. dxe5 {[%emt 0:00:11]} Qc7 {[%emt 0:00:38]} 19. f4 {[%emt 0:01:55]} Qb6+ {[%emt 0:04:14]} 20. Kh1 {[%emt 0:00:17]} Ne3 {[%emt 0:01:35]} 21. Rd6 {[%emt 0:01:51]} Nc4 {[%emt 0:01:12]} 22. Rd7 {[%emt 0:07:38]} Rfd8 {[%emt 0:00:48]} 23. Rxd8+ {[%emt 0:01:40]} Rxd8 {[%emt 0:00:11]} 24. a4 {[%emt 0:25:25]} Na5 {[%emt 0:20:45]} 25. axb5 {[%emt 0:08:50]} cxb5 {[%emt 0:03:24]} 26. Qg1 {[%emt 0:00:48]} Qc7 {[%emt 0:03:03]} 27. Ne4 {[%emt 0:02:51]} Bxe4 {[%emt 0:06:35]} 28. Bxe4 {[%emt 0:00:14]} Nc4 {[%emt 0:00:45]} 29. Rxa6 {[%emt 0:03:33]} Nxb2 {[%emt 0:00:13]} 30. Qb6 {[%emt 0:02:41]} Qd7 {[%emt 0:01:05]} 31. Qd6 {[%emt 0:07:17]} Qxd6 {[%emt 0:03:23]} 32. Rxd6 {[%emt 0:00:03]} Rb8 {[%emt 0:00:34]} 33. Bc2 {[%emt 0:01:15]} Nc4 {[%emt 0:00:54]} 34. Rc6 {[%emt 0:00:55]} Ne3 {[%emt 0:01:05]} 35. Bb3 {[%emt 0:00:36]} g6 {[%emt 0:00:30]} 36. Kg1 {[%emt 0:00:38]} Nf5 {[%emt 0:01:37]} 37. Kf2 {[%emt 0:00:29]} Nd4 {[%emt 0:00:23]} 38. Rc3 {[%emt 0:00:02]} Nxb3 {[%emt 0:01:00]} 39. Rxb3 {[%emt 0:00:02]} Kg7 {[%emt 0:01:30]} 40. Ke3 {[%emt 0:01:09]} h6 {[%emt 0:01:52]} 41. h4 {[%emt 0:07:36]} Rb7 {[%emt 0:02:38]} 42. Kf3 {[%emt 0:10:57]} h5 {[%emt 0:02:35]} 43. Ke4 {[%emt 0:01:13]} Rb8 {[%emt 0:00:23]} 44. Rb2 {[%emt 0:00:32]} Rb7 {[%emt 0:00:43]} 45. Kd4 {[%emt 0:00:35]} Rd7+ {[%emt 0:00:30]} 46. Kc5 {[%emt 0:03:09]} Rd1 {[%emt 0:01:02]} 47. Kxb5 {[%emt 0:00:55]} f6 {[%emt 0:01:25]} 48. Kc6 {[%emt 0:02:18]} fxe5 {[%emt 0:01:25]} 49. fxe5 {[%emt 0:00:11]} Rd5 {[%emt 0:01:04]} 50. Rb7+ {[%emt 0:01:56]} Kh6 {[%emt 0:01:11]} 51. Rb5 {[%emt 0:00:53]} Rd2 {[%emt 0:00:28]} 52. Rb3 {[%emt 0:01:25]} Rd5 {[%emt 0:01:23]} 53. e4 {[%emt 0:03:57]} Rxe5 {[%emt 0:00:58]} 54. Rb4 {[%emt 0:00:07]} Kg7 {[%emt 0:00:26]} 55. Kd6 {[%emt 0:01:02]} Kf6 {[%emt 0:00:12]} 56. Ra4 {[%emt 0:00:45]} Rb5 {[%emt 0:00:41]} 57. Ra3 {[%emt 0:01:11]} Rb6+ {[%emt 0:01:12]} 58. Kc5 {[%emt 0:00:02]} Rb1 {[%emt 0:00:44]} 59. Kd4 {[%emt 0:00:25]} Rd1+ {[%emt 0:05:07]} 60. Rd3 {[%emt 0:00:01]} Rf1 {[%emt 0:04:28]} 61. Ra3 {[%emt 0:01:17]} Rd1+ {[%emt 0:00:17]} 62. Rd3 {[%emt 0:00:35]} Rf1 {[%emt 0:00:06]} 63. Ra3 {[%emt 0:01:19]} 1/2-1/2